[Event "Late-Titled-Tuesday-Blitz-October-24-2023"]
[Site "Chess.com"]
[Date "2023.10.24"]
[Round "10"]
[White "zajka-molotok"]
[Black "Gogolev_Artemy"]
[Result "0-1"]
[WhiteElo "2531"]
[BlackElo "2439"]
[TimeControl "180+1"]
[EndTime "15:56:18 PDT"]
[Termination "Gogolev_Artemy won on time"]

1. e4 {[%clk 0:03:00.9]} 1... c5 {[%clk 0:02:52.5]} 2. Nf3 {[%clk 0:02:59.6]}
2... Nc6 {[%clk 0:02:51.4]} 3. Bb5 {[%clk 0:02:58.7]} 3... e6 {[%clk 0:02:48.8]}
4. c3 {[%clk 0:02:57.2]} 4... Nge7 {[%clk 0:02:46.7]} 5. O-O {[%clk 0:02:54.6]}
5... a6 {[%clk 0:02:40]} 6. Ba4 {[%clk 0:02:54.5]} 6... b5 {[%clk 0:02:25.5]} 7.
Bc2 {[%clk 0:02:54.1]} 7... d5 {[%clk 0:02:24.2]} 8. d4 {[%clk 0:02:49.2]} 8...
cxd4 {[%clk 0:02:22.9]} 9. cxd4 {[%clk 0:02:40.8]} 9... dxe4 {[%clk 0:02:22]}
10. Bxe4 {[%clk 0:02:39.2]} 10... Bb7 {[%clk 0:02:12.8]} 11. Nc3 {[%clk
0:02:38.1]} 11... b4 {[%clk 0:02:11.3]} 12. Na4 {[%clk 0:02:27.6]} 12... Nd5
{[%clk 0:02:09.8]} 13. Bxd5 {[%clk 0:02:20.9]} 13... exd5 {[%clk 0:01:54.8]} 14.
Re1+ {[%clk 0:02:20.8]} 14... Be7 {[%clk 0:01:54.8]} 15. Nc5 {[%clk 0:02:17.9]}
15... Bc8 {[%clk 0:01:35.6]} 16. Qa4 {[%clk 0:02:14.9]} 16... Bd7 {[%clk
0:01:33.7]} 17. Nxd7 {[%clk 0:01:59.7]} 17... Qxd7 {[%clk 0:01:33.3]} 18. Bg5
{[%clk 0:01:58.9]} 18... f6 {[%clk 0:01:31.3]} 19. Bd2 {[%clk 0:01:33.4]} 19...
Kf7 {[%clk 0:01:30.5]} 20. Rac1 {[%clk 0:01:24.8]} 20... Rhc8 {[%clk 0:01:29.3]}
21. Rc2 {[%clk 0:01:10.4]} 21... Qb7 {[%clk 0:00:51]} 22. Rec1 {[%clk
0:01:00.5]} 22... Na7 {[%clk 0:00:49.5]} 23. Bf4 {[%clk 0:00:48.3]} 23... Rxc2
{[%clk 0:00:43.9]} 24. Qxc2 {[%clk 0:00:44.7]} 24... Rc8 {[%clk 0:00:41.3]} 25.
Qxh7 {[%clk 0:00:43.3]} 25... Rxc1+ {[%clk 0:00:38.4]} 26. Bxc1 {[%clk
0:00:44.2]} 26... Qc8 {[%clk 0:00:33.7]} 27. Bd2 {[%clk 0:00:41.3]} 27... Qg4
{[%clk 0:00:29.8]} 28. Qd3 {[%clk 0:00:37.7]} 28... Nb5 {[%clk 0:00:28.4]} 29.
h3 {[%clk 0:00:32.2]} 29... Qe4 {[%clk 0:00:29]} 30. Qb3 {[%clk 0:00:26.3]}
30... Nxd4 {[%clk 0:00:28.5]} 31. Nxd4 {[%clk 0:00:21.9]} 31... Qxd4 {[%clk
0:00:29.4]} 32. Be3 {[%clk 0:00:21]} 32... Qc4 {[%clk 0:00:30]} 33. Qa4 {[%clk
0:00:15.7]} 33... d4 {[%clk 0:00:30.1]} 34. Bd2 {[%clk 0:00:13.3]} 34... d3
{[%clk 0:00:24.3]} 35. Qd7 {[%clk 0:00:12.7]} 35... Qxa2 {[%clk 0:00:20.7]} 36.
Bxb4 {[%clk 0:00:12.1]} 36... Qe6 {[%clk 0:00:18.7]} 37. Qxd3 {[%clk 0:00:10.6]}
37... Bxb4 {[%clk 0:00:18.7]} 38. g4 {[%clk 0:00:05.2]} 38... Bc5 {[%clk
0:00:17]} 39. Kg2 {[%clk 0:00:04.5]} 39... Qc6+ {[%clk 0:00:16.6]} 40. f3 {[%clk
0:00:04.4]} 40... Qd6 {[%clk 0:00:16.1]} 41. Qc4+ {[%clk 0:00:03.3]} 41... Kg6
{[%clk 0:00:12.8]} 42. Qc2+ {[%clk 0:00:02.6]} 42... Kh6 {[%clk 0:00:13]} 43.
Qc1+ {[%clk 0:00:02]} 43... g5 {[%clk 0:00:11.8]} 0-1

[Event "Late-Titled-Tuesday-Blitz-October-24-2023"]
[Site "Chess.com"]
[Date "2023.10.24"]
[Round "10"]
[White "dianamirza"]
[Black "rikchessmx"]
[Result "0-1"]
[WhiteElo "2020"]
[BlackElo "2265"]
[TimeControl "180+1"]
[EndTime "15:56:20 PDT"]
[Termination "rikchessmx won on time"]

1. e4 {[%clk 0:03:00.9]} 1... d5 {[%clk 0:03:00.9]} 2. exd5 {[%clk 0:03:00.3]}
2... Qxd5 {[%clk 0:02:57.1]} 3. Nc3 {[%clk 0:03:01.2]} 3... Qa5 {[%clk
0:02:49.2]} 4. d4 {[%clk 0:03:02.1]} 4... Nf6 {[%clk 0:02:48.7]} 5. Bd2 {[%clk
0:02:59.6]} 5... Nc6 {[%clk 0:02:45.1]} 6. Nf3 {[%clk 0:02:59.5]} 6... Bg4
{[%clk 0:02:43.7]} 7. Bb5 {[%clk 0:02:55.6]} 7... O-O-O {[%clk 0:02:42.9]} 8.
Bxc6 {[%clk 0:02:54.6]} 8... bxc6 {[%clk 0:02:42.7]} 9. Ne4 {[%clk 0:02:39.4]}
9... Qb6 {[%clk 0:02:40.1]} 10. Nxf6 {[%clk 0:02:38.3]} 10... exf6 {[%clk
0:02:38.5]} 11. c3 {[%clk 0:02:36.2]} 11... c5 {[%clk 0:02:37.3]} 12. O-O {[%clk
0:02:35.3]} 12... cxd4 {[%clk 0:02:36.5]} 13. cxd4 {[%clk 0:02:34.9]} 13... Rxd4
{[%clk 0:02:28.8]} 14. Qc2 {[%clk 0:02:04.7]} 14... Bxf3 {[%clk 0:02:22.9]} 15.
gxf3 {[%clk 0:01:59.5]} 15... Rd5 {[%clk 0:02:08.9]} 16. Rfe1 {[%clk 0:01:52.5]}
16... Bc5 {[%clk 0:02:05.3]} 17. Bf4 {[%clk 0:01:47.6]} 17... g5 {[%clk
0:01:59.4]} 18. Bg3 {[%clk 0:01:47.2]} 18... f5 {[%clk 0:01:59.8]} 19. f4 {[%clk
0:01:46.1]} 19... gxf4 {[%clk 0:01:54.9]} 20. Bxf4 {[%clk 0:01:45.6]} 20... Rg8+
{[%clk 0:01:55]} 21. Kh1 {[%clk 0:01:40.7]} 21... Qc6 {[%clk 0:01:54.7]} 22. f3
{[%clk 0:01:31.1]} 22... Rd4 {[%clk 0:01:54.6]} 23. Qxf5+ {[%clk 0:01:27.3]}
23... Kb7 {[%clk 0:01:49.7]} 24. Bg3 {[%clk 0:01:21.7]} 24... Rd5 {[%clk
0:01:33.6]} 25. Qxf7 {[%clk 0:01:18.2]} 25... Rf8 {[%clk 0:01:30.3]} 26. Qxh7
{[%clk 0:00:58]} 26... Rdf5 {[%clk 0:01:25.2]} 27. Qxc7+ {[%clk 0:00:35.2]}
27... Qxc7 {[%clk 0:01:24.1]} 28. Bxc7 {[%clk 0:00:36.1]} 28... Kxc7 {[%clk
0:01:24.3]} 29. Rac1 {[%clk 0:00:34.7]} 29... Kb6 {[%clk 0:01:24.4]} 30. Re6+
{[%clk 0:00:34.4]} 30... Kb5 {[%clk 0:01:23.3]} 31. Kg2 {[%clk 0:00:28.3]} 31...
Rxf3 {[%clk 0:01:15]} 32. a4+ {[%clk 0:00:24.7]} 32... Kxa4 {[%clk 0:01:06.6]}
33. Rxc5 {[%clk 0:00:24.2]} 33... Kb3 {[%clk 0:00:53.9]} 34. Rb5+ {[%clk
0:00:14.7]} 34... Kc4 {[%clk 0:00:53.4]} 35. Rb7 {[%clk 0:00:14.3]} 35... a5
{[%clk 0:00:50]} 36. Rc6+ {[%clk 0:00:13.7]} 36... Kd5 {[%clk 0:00:49.5]} 37.
Ra6 {[%clk 0:00:13]} 37... Rf2+ {[%clk 0:00:48]} 38. Kg3 {[%clk 0:00:13]} 38...
R2f3+ {[%clk 0:00:45.2]} 39. Kg4 {[%clk 0:00:13]} 39... R3f4+ {[%clk 0:00:45.3]}
40. Kg5 {[%clk 0:00:13.3]} 40... R4f5+ {[%clk 0:00:45.6]} 41. Kg6 {[%clk
0:00:13.7]} 41... Kc4 {[%clk 0:00:42.9]} 42. b3+ {[%clk 0:00:11.9]} 42... Kd3
{[%clk 0:00:42.8]} 43. Rd6+ {[%clk 0:00:11.7]} 43... Kc3 {[%clk 0:00:41.7]} 44.
Rc6+ {[%clk 0:00:12.1]} 44... Kb2 {[%clk 0:00:41.7]} 45. b4 {[%clk 0:00:11.6]}
45... a4 {[%clk 0:00:41.2]} 46. b5 {[%clk 0:00:11.2]} 46... a3 {[%clk 0:00:41]}
47. Ra6 {[%clk 0:00:11.5]} 47... a2 {[%clk 0:00:41]} 48. Rd7 {[%clk 0:00:07.2]}
48... Rf2 {[%clk 0:00:37.2]} 49. b6 {[%clk 0:00:04.9]} 49... a1=Q {[%clk
0:00:37.6]} 50. Rxa1 {[%clk 0:00:04.9]} 50... Kxa1 {[%clk 0:00:38.5]} 51. b7
{[%clk 0:00:05.4]} 51... Rb8 {[%clk 0:00:37.8]} 52. h4 {[%clk 0:00:04.3]} 52...
Rg2+ {[%clk 0:00:37]} 53. Kh7 {[%clk 0:00:04.1]} 53... Rh2 {[%clk 0:00:35.7]}
54. Rd4 {[%clk 0:00:01.7]} 54... Rxb7+ {[%clk 0:00:35.5]} 55. Kg6 {[%clk
0:00:01.8]} 55... Rb6+ {[%clk 0:00:33.8]} 56. Kg5 {[%clk 0:00:02.1]} 56... Rb5+
{[%clk 0:00:34.1]} 57. Kg4 {[%clk 0:00:01.8]} 57... Kb2 {[%clk 0:00:34.2]} 58.
h5 {[%clk 0:00:01.9]} 58... Kc3 {[%clk 0:00:34.4]} 0-1

[Event "Late-Titled-Tuesday-Blitz-October-24-2023"]
[Site "Chess.com"]
[Date "2023.10.24"]
[Round "10"]
[White "dropstoneDP"]
[Black "Angry_Twin"]
[Result "1-0"]
[WhiteElo "3107"]
[BlackElo "2960"]
[TimeControl "180+1"]
[EndTime "15:56:23 PDT"]
[Termination "dropstoneDP won on time"]

1. e4 {[%clk 0:03:00.9]} 1... c5 {[%clk 0:03:00]} 2. Nf3 {[%clk 0:03:00.8]} 2...
d6 {[%clk 0:03:00.8]} 3. d4 {[%clk 0:03:01.4]} 3... cxd4 {[%clk 0:03:01.7]} 4.
Nxd4 {[%clk 0:03:02.3]} 4... Nf6 {[%clk 0:03:02.6]} 5. Nc3 {[%clk 0:03:02.3]}
5... a6 {[%clk 0:03:03.3]} 6. Bd3 {[%clk 0:03:00.9]} 6... e5 {[%clk 0:03:03.2]}
7. Nde2 {[%clk 0:03:01]} 7... Be7 {[%clk 0:03:03.9]} 8. O-O {[%clk 0:03:01.4]}
8... O-O {[%clk 0:03:04.3]} 9. Ng3 {[%clk 0:03:02.1]} 9... Nc6 {[%clk
0:03:02.4]} 10. Nd5 {[%clk 0:03:01.6]} 10... Nxd5 {[%clk 0:02:55.6]} 11. exd5
{[%clk 0:03:02.5]} 11... Nb4 {[%clk 0:02:54.2]} 12. Be4 {[%clk 0:03:03]} 12...
a5 {[%clk 0:02:50.9]} 13. Nf5 {[%clk 0:02:58.5]} 13... Bxf5 {[%clk 0:02:50.4]}
14. Bxf5 {[%clk 0:02:59.4]} 14... g6 {[%clk 0:02:50.9]} 15. Bh3 {[%clk
0:02:56.2]} 15... f5 {[%clk 0:02:48.8]} 16. c3 {[%clk 0:02:55.5]} 16... Na6
{[%clk 0:02:48.8]} 17. Be3 {[%clk 0:02:53.9]} 17... Qc7 {[%clk 0:02:48.7]} 18.
a4 {[%clk 0:02:45.6]} 18... Bf6 {[%clk 0:02:45]} 19. Qe2 {[%clk 0:02:41.2]}
19... Nc5 {[%clk 0:02:33.3]} 20. Qb5 {[%clk 0:02:39.3]} 20... e4 {[%clk
0:02:23.1]} 21. Bxc5 {[%clk 0:02:27.6]} 21... dxc5 {[%clk 0:01:57]} 22. Rad1
{[%clk 0:02:24.1]} 22... Be5 {[%clk 0:01:54]} 23. g3 {[%clk 0:02:21.5]} 23...
Bd6 {[%clk 0:01:54.1]} 24. f3 {[%clk 0:02:06.7]} 24... Rae8 {[%clk 0:01:40.4]}
25. fxe4 {[%clk 0:01:57.6]} 25... Rxe4 {[%clk 0:01:39.7]} 26. Bg2 {[%clk
0:01:54.1]} 26... Re7 {[%clk 0:01:29.7]} 27. Rde1 {[%clk 0:01:51.3]} 27... h5
{[%clk 0:01:25.4]} 28. Re6 {[%clk 0:01:46.7]} 28... Rxe6 {[%clk 0:01:22.9]} 29.
dxe6 {[%clk 0:01:47.6]} 29... h4 {[%clk 0:01:22.5]} 30. Qxb7 {[%clk 0:01:12.7]}
30... hxg3 {[%clk 0:01:16.4]} 31. Qxc7 {[%clk 0:01:04.4]} 31... gxh2+ {[%clk
0:00:59.4]} 32. Kh1 {[%clk 0:01:04.5]} 32... Bxc7 {[%clk 0:00:59.2]} 33. Bc6
{[%clk 0:01:05.1]} 33... Bd6 {[%clk 0:00:23.4]} 34. Rd1 {[%clk 0:01:05]} 34...
Be7 {[%clk 0:00:23.5]} 35. Rd7 {[%clk 0:01:05]} 35... Bf6 {[%clk 0:00:22.8]} 36.
e7 {[%clk 0:00:45.3]} 36... Re8 {[%clk 0:00:20.4]} 37. Rd6 {[%clk 0:00:45.8]}
37... Rxe7 {[%clk 0:00:17.1]} 38. Rxf6 {[%clk 0:00:45.3]} 38... Kg7 {[%clk
0:00:15.6]} 39. Rd6 {[%clk 0:00:45.6]} 39... Re1+ {[%clk 0:00:16]} 40. Kxh2
{[%clk 0:00:45.6]} 40... Re2+ {[%clk 0:00:16.5]} 41. Kg3 {[%clk 0:00:41.6]}
41... Rxb2 {[%clk 0:00:17.4]} 42. Kf4 {[%clk 0:00:41.1]} 42... Rc2 {[%clk
0:00:09.9]} 43. Be8 {[%clk 0:00:37.6]} 43... Rf2+ {[%clk 0:00:06.1]} 44. Kg3
{[%clk 0:00:36.4]} 44... Rc2 {[%clk 0:00:06.3]} 45. Rxg6+ {[%clk 0:00:35.9]}
45... Kf8 {[%clk 0:00:06.5]} 46. Bb5 {[%clk 0:00:36.2]} 46... Kf7 {[%clk
0:00:05.7]} 47. Ra6 {[%clk 0:00:35.8]} 47... Rxc3+ {[%clk 0:00:06.2]} 48. Kf4
{[%clk 0:00:36.4]} 48... Ke7 {[%clk 0:00:05.2]} 49. Kxf5 {[%clk 0:00:36.2]}
49... Re3 {[%clk 0:00:04.6]} 50. Kf4 {[%clk 0:00:35.8]} 50... Re1 {[%clk
0:00:04.4]} 51. Rc6 {[%clk 0:00:34.4]} 51... Rc1 {[%clk 0:00:04]} 52. Ke5 {[%clk
0:00:34.8]} 52... Kd8 {[%clk 0:00:02.4]} 53. Kd5 {[%clk 0:00:35.1]} 1-0

[Event "Late-Titled-Tuesday-Blitz-October-24-2023"]
[Site "Chess.com"]
[Date "2023.10.24"]
[Round "10"]
[White "dosto07"]
[Black "karinachess1"]
[Result "0-1"]
[WhiteElo "2532"]
[BlackElo "2627"]
[TimeControl "180+1"]
[EndTime "15:56:25 PDT"]
[Termination "karinachess1 won by resignation"]

1. e4 {[%clk 0:03:00.9]} 1... e5 {[%clk 0:02:59.8]} 2. Nf3 {[%clk 0:03:01]} 2...
Nc6 {[%clk 0:03:00]} 3. Bb5 {[%clk 0:03:00.5]} 3... Nf6 {[%clk 0:02:59.4]} 4.
O-O {[%clk 0:02:59.6]} 4... Nxe4 {[%clk 0:02:59.4]} 5. d4 {[%clk 0:02:55.1]}
5... Nd6 {[%clk 0:02:58.3]} 6. Bxc6 {[%clk 0:02:55.7]} 6... dxc6 {[%clk
0:02:59.2]} 7. dxe5 {[%clk 0:02:56]} 7... Nf5 {[%clk 0:02:59.5]} 8. Qxd8+ {[%clk
0:02:56.3]} 8... Kxd8 {[%clk 0:03:00.4]} 9. Nc3 {[%clk 0:02:56.5]} 9... Be7
{[%clk 0:02:52.2]} 10. Rd1+ {[%clk 0:02:55]} 10... Ke8 {[%clk 0:02:51.9]} 11. h3
{[%clk 0:02:55]} 11... Be6 {[%clk 0:02:44.6]} 12. Bg5 {[%clk 0:02:54.3]} 12...
h5 {[%clk 0:02:29.4]} 13. Bxe7 {[%clk 0:02:34.8]} 13... Kxe7 {[%clk 0:02:29.5]}
14. Ne2 {[%clk 0:02:27.9]} 14... a5 {[%clk 0:02:08.1]} 15. Ned4 {[%clk
0:02:24.4]} 15... Rad8 {[%clk 0:01:59.7]} 16. a4 {[%clk 0:02:04.6]} 16... Rd5
{[%clk 0:01:51.5]} 17. Nxf5+ {[%clk 0:01:44.5]} 17... Bxf5 {[%clk 0:01:51.5]}
18. Rdc1 {[%clk 0:01:25.1]} 18... Be4 {[%clk 0:01:23.8]} 19. Ng5 {[%clk
0:01:24.2]} 19... Bf5 {[%clk 0:01:10.8]} 20. Nf3 {[%clk 0:01:15.4]} 20... Rhd8
{[%clk 0:01:09.9]} 21. Kh2 {[%clk 0:01:09]} 21... c5 {[%clk 0:00:49.8]} 22. Ra3
{[%clk 0:01:03.1]} 22... b6 {[%clk 0:00:46.7]} 23. Re3 {[%clk 0:00:54.6]} 23...
Rd1 {[%clk 0:00:46]} 24. Rxd1 {[%clk 0:00:49.9]} 24... Rxd1 {[%clk 0:00:46.9]}
25. Re2 {[%clk 0:00:46.8]} 25... Rc1 {[%clk 0:00:41.2]} 26. Ne1 {[%clk
0:00:44.4]} 26... c4 {[%clk 0:00:30.5]} 27. f3 {[%clk 0:00:36]} 27... Bd7 {[%clk
0:00:30.5]} 28. b3 {[%clk 0:00:33.5]} 28... cxb3 {[%clk 0:00:29.2]} 29. cxb3
{[%clk 0:00:33.9]} 29... Rb1 {[%clk 0:00:29.7]} 30. Re3 {[%clk 0:00:22.9]} 30...
Be6 {[%clk 0:00:30]} 31. f4 {[%clk 0:00:21.4]} 31... Rxb3 {[%clk 0:00:23.6]} 32.
Re2 {[%clk 0:00:18.2]} 32... Rb4 {[%clk 0:00:23.8]} 33. Rf2 {[%clk 0:00:13.4]}
33... g6 {[%clk 0:00:20.5]} 34. Nd3 {[%clk 0:00:11.4]} 34... Rxa4 {[%clk
0:00:19.6]} 35. Kg3 {[%clk 0:00:11.8]} 35... Ra3 {[%clk 0:00:19.4]} 36. Rf3
{[%clk 0:00:12.2]} 36... Bc4 {[%clk 0:00:17.3]} 37. Nb2 {[%clk 0:00:11.8]} 37...
Rxf3+ {[%clk 0:00:17.5]} 38. Kxf3 {[%clk 0:00:12.7]} 38... Bd5+ {[%clk
0:00:17.9]} 39. Kf2 {[%clk 0:00:12.2]} 39... b5 {[%clk 0:00:18.3]} 40. g4 {[%clk
0:00:12]} 40... hxg4 {[%clk 0:00:17.9]} 41. hxg4 {[%clk 0:00:12.7]} 41... a4
{[%clk 0:00:17.3]} 42. Nd3 {[%clk 0:00:10.5]} 42... a3 {[%clk 0:00:17.1]} 43.
Nb4 {[%clk 0:00:10.5]} 43... Ke6 {[%clk 0:00:15.2]} 44. Ke3 {[%clk 0:00:09.6]}
44... c5 {[%clk 0:00:15.1]} 45. Nc2 {[%clk 0:00:09.4]} 45... a2 {[%clk
0:00:13.2]} 46. Kd3 {[%clk 0:00:09.1]} 46... b4 {[%clk 0:00:13.7]} 47. f5+
{[%clk 0:00:06.5]} 47... gxf5 {[%clk 0:00:13.6]} 48. g5 {[%clk 0:00:06.8]} 48...
Kxe5 {[%clk 0:00:13.1]} 49. Na1 {[%clk 0:00:05.4]} 49... b3 {[%clk 0:00:12.9]}
50. Kc3 {[%clk 0:00:05.4]} 50... f4 {[%clk 0:00:13.5]} 0-1

[Event "Late-Titled-Tuesday-Blitz-October-24-2023"]
[Site "Chess.com"]
[Date "2023.10.24"]
[Round "10"]
[White "sergeikim"]
[Black "Mikhal867"]
[Result "1-0"]
[WhiteElo "2601"]
[BlackElo "2437"]
[TimeControl "180+1"]
[EndTime "15:56:31 PDT"]
[Termination "sergeikim won by resignation"]

1. d4 {[%clk 0:03:00.9]} 1... g6 {[%clk 0:02:57]} 2. c4 {[%clk 0:03:00.8]} 2...
Bg7 {[%clk 0:02:57.6]} 3. Nc3 {[%clk 0:03:01.1]} 3... d6 {[%clk 0:02:57.7]} 4.
e4 {[%clk 0:03:01.2]} 4... e5 {[%clk 0:02:58]} 5. Nge2 {[%clk 0:03:00.4]} 5...
Nc6 {[%clk 0:02:56.8]} 6. Be3 {[%clk 0:02:59.6]} 6... Nf6 {[%clk 0:02:51]} 7. d5
{[%clk 0:02:59.5]} 7... Ne7 {[%clk 0:02:50.6]} 8. Ng3 {[%clk 0:02:58.5]} 8... h5
{[%clk 0:02:49.1]} 9. f3 {[%clk 0:02:43.9]} 9... h4 {[%clk 0:02:48.4]} 10. Nge2
{[%clk 0:02:43.5]} 10... Nh5 {[%clk 0:02:35.8]} 11. Qd2 {[%clk 0:02:42.5]} 11...
f5 {[%clk 0:02:35.3]} 12. g3 {[%clk 0:02:40.4]} 12... O-O {[%clk 0:02:14.6]} 13.
O-O-O {[%clk 0:02:37.9]} 13... f4 {[%clk 0:02:13.6]} 14. gxf4 {[%clk 0:02:34.6]}
14... Nxf4 {[%clk 0:02:11]} 15. Nxf4 {[%clk 0:02:25.5]} 15... exf4 {[%clk
0:02:11]} 16. Bxf4 {[%clk 0:02:12.8]} 16... a6 {[%clk 0:01:48.2]} 17. Be2 {[%clk
0:02:06.1]} 17... b5 {[%clk 0:01:47.5]} 18. Be3 {[%clk 0:02:04.7]} 18... bxc4
{[%clk 0:01:44.1]} 19. Bd4 {[%clk 0:02:00.6]} 19... Qe8 {[%clk 0:01:31.4]} 20.
Rhg1 {[%clk 0:01:57.9]} 20... Qf7 {[%clk 0:01:29.2]} 21. Bxg7 {[%clk 0:01:47.7]}
21... Kxg7 {[%clk 0:01:29.1]} 22. Qd4+ {[%clk 0:01:42]} 22... Qf6 {[%clk
0:01:29.2]} 23. Qxc4 {[%clk 0:01:40.8]} 23... a5 {[%clk 0:01:08.6]} 24. Qd4
{[%clk 0:01:37.6]} 24... Ba6 {[%clk 0:00:50.7]} 25. Qxf6+ {[%clk 0:01:32.2]}
25... Kxf6 {[%clk 0:00:50.1]} 26. f4 {[%clk 0:01:24.9]} 26... Kg7 {[%clk
0:00:40.4]} 27. Rdf1 {[%clk 0:01:24.4]} 27... a4 {[%clk 0:00:36.6]} 28. Bxa6
{[%clk 0:01:11.4]} 28... Rxa6 {[%clk 0:00:36.1]} 29. a3 {[%clk 0:01:06.6]} 29...
Kh6 {[%clk 0:00:30]} 30. Rg4 {[%clk 0:01:04.5]} 30... Kh5 {[%clk 0:00:27.2]} 31.
Rfg1 {[%clk 0:01:04.3]} 31... c6 {[%clk 0:00:18.9]} 32. dxc6 {[%clk 0:01:00]}
32... Rxc6 {[%clk 0:00:18.9]} 33. Rg5+ {[%clk 0:01:00.2]} 33... Kh6 {[%clk
0:00:18.7]} 34. R1g4 {[%clk 0:00:59.8]} 34... Rc4 {[%clk 0:00:15.3]} 35. Rxh4+
{[%clk 0:00:57.6]} 35... Kg7 {[%clk 0:00:15.7]} 36. Rhg4 {[%clk 0:00:55.7]}
36... Kf6 {[%clk 0:00:16]} 37. h4 {[%clk 0:00:52.3]} 37... Rfc8 {[%clk
0:00:15.8]} 38. h5 {[%clk 0:00:49]} 38... gxh5 {[%clk 0:00:15.1]} 39. Rxh5
{[%clk 0:00:48.8]} 39... Rxe4 {[%clk 0:00:15.4]} 40. Rh6+ {[%clk 0:00:46.9]}
40... Kf5 {[%clk 0:00:15.8]} 41. Rg7 {[%clk 0:00:42.8]} 41... Nd5 {[%clk
0:00:15.8]} 42. Rg5+ {[%clk 0:00:39.3]} 42... Kxf4 {[%clk 0:00:13.2]} 43. Rxd5
{[%clk 0:00:38.6]} 43... Re1+ {[%clk 0:00:13.5]} 44. Rd1 {[%clk 0:00:37.6]}
44... Rxd1+ {[%clk 0:00:12.5]} 45. Kxd1 {[%clk 0:00:37.6]} 45... d5 {[%clk
0:00:12.6]} 46. Rd6 {[%clk 0:00:35.7]} 46... Ke5 {[%clk 0:00:11.9]} 47. Rxd5+
{[%clk 0:00:35.6]} 47... Ke6 {[%clk 0:00:12.5]} 48. Ra5 {[%clk 0:00:35.1]} 48...
Rb8 {[%clk 0:00:12.2]} 49. Kc2 {[%clk 0:00:34.2]} 49... Kd6 {[%clk 0:00:11.8]}
50. Rxa4 {[%clk 0:00:34.3]} 50... Kc6 {[%clk 0:00:12.2]} 51. Rb4 {[%clk
0:00:34.1]} 51... Rh8 {[%clk 0:00:10]} 52. a4 {[%clk 0:00:33.9]} 52... Kc5
{[%clk 0:00:09.6]} 53. Kb3 {[%clk 0:00:32.1]} 53... Rh3 {[%clk 0:00:08.7]} 54.
Rb5+ {[%clk 0:00:31.7]} 54... Kc6 {[%clk 0:00:08.5]} 55. Rb4 {[%clk 0:00:31.7]}
55... Rh1 {[%clk 0:00:08.1]} 56. a5 {[%clk 0:00:31.5]} 56... Ra1 {[%clk
0:00:07.5]} 57. Ra4 {[%clk 0:00:31.6]} 57... Rh1 {[%clk 0:00:07.4]} 58. a6
{[%clk 0:00:31.5]} 1-0

[Event "Late-Titled-Tuesday-Blitz-October-24-2023"]
[Site "Chess.com"]
[Date "2023.10.24"]
[Round "10"]
[White "ejalmedina"]
[Black "randy296"]
[Result "1-0"]
[WhiteElo "2311"]
[BlackElo "2116"]
[TimeControl "180+1"]
[EndTime "15:56:32 PDT"]
[Termination "ejalmedina won by checkmate"]

1. e4 {[%clk 0:03:00.9]} 1... c5 {[%clk 0:02:56.4]} 2. Nf3 {[%clk 0:03:00.1]}
2... d6 {[%clk 0:02:56.6]} 3. c3 {[%clk 0:02:59.2]} 3... Nf6 {[%clk 0:02:55.5]}
4. h3 {[%clk 0:02:59.4]} 4... g6 {[%clk 0:02:55.2]} 5. Bd3 {[%clk 0:02:59.6]}
5... c4 {[%clk 0:02:54.1]} 6. Bc2 {[%clk 0:02:58.5]} 6... Bg7 {[%clk 0:02:53.6]}
7. O-O {[%clk 0:02:57.5]} 7... O-O {[%clk 0:02:53.2]} 8. b3 {[%clk 0:02:57.9]}
8... cxb3 {[%clk 0:02:43]} 9. axb3 {[%clk 0:02:58.8]} 9... a6 {[%clk 0:02:38.3]}
10. d4 {[%clk 0:02:54.7]} 10... Nc6 {[%clk 0:02:38.3]} 11. d5 {[%clk 0:02:43.3]}
11... Ne5 {[%clk 0:02:26.5]} 12. Nxe5 {[%clk 0:02:42.4]} 12... dxe5 {[%clk
0:02:26.8]} 13. c4 {[%clk 0:02:39.2]} 13... Qc7 {[%clk 0:02:23]} 14. Be3 {[%clk
0:02:32.1]} 14... Nh5 {[%clk 0:02:09.8]} 15. c5 {[%clk 0:02:19.5]} 15... Nf4
{[%clk 0:02:03.1]} 16. b4 {[%clk 0:02:06.9]} 16... Bd7 {[%clk 0:01:44.3]} 17.
Na3 {[%clk 0:01:55.6]} 17... Rad8 {[%clk 0:01:37.1]} 18. Ba4 {[%clk 0:01:34.5]}
18... Qc8 {[%clk 0:01:11.9]} 19. Bxd7 {[%clk 0:01:31.3]} 19... Qxd7 {[%clk
0:01:10.9]} 20. Rb1 {[%clk 0:01:22.1]} 20... f5 {[%clk 0:01:10.4]} 21. f3 {[%clk
0:01:07.5]} 21... fxe4 {[%clk 0:01:03.2]} 22. fxe4 {[%clk 0:01:08.4]} 22...
Nxh3+ {[%clk 0:00:56.7]} 23. gxh3 {[%clk 0:01:04.3]} 23... Qxh3 {[%clk
0:00:56.5]} 24. Nc4 {[%clk 0:00:21.4]} 24... Qg3+ {[%clk 0:00:51.8]} 25. Kh1
{[%clk 0:00:21.5]} 25... Qh3+ {[%clk 0:00:50.7]} 26. Kg1 {[%clk 0:00:21]} 26...
Rxf1+ {[%clk 0:00:35.9]} 27. Qxf1 {[%clk 0:00:20]} 27... Qg3+ {[%clk 0:00:29.5]}
28. Qg2 {[%clk 0:00:19.5]} 28... Qh4 {[%clk 0:00:29.3]} 29. Rf1 {[%clk
0:00:16.9]} 29... Bh6 {[%clk 0:00:21]} 30. Bxh6 {[%clk 0:00:16]} 30... Qxh6
{[%clk 0:00:21.2]} 31. Nxe5 {[%clk 0:00:15.3]} 31... Qe3+ {[%clk 0:00:20.3]} 32.
Qf2 {[%clk 0:00:14.6]} 32... Qxe4 {[%clk 0:00:16.5]} 33. Qf7+ {[%clk 0:00:13]}
33... Kh8 {[%clk 0:00:16.5]} 34. Qe6 {[%clk 0:00:12.2]} 34... Qe3+ {[%clk
0:00:13.9]} 35. Kg2 {[%clk 0:00:10.5]} 35... Qg5+ {[%clk 0:00:12.1]} 36. Ng4
{[%clk 0:00:07.4]} 36... Qd2+ {[%clk 0:00:11.9]} 37. Rf2 {[%clk 0:00:07.7]}
37... Qxd5+ {[%clk 0:00:05.2]} 38. Qxd5 {[%clk 0:00:07.2]} 38... Rxd5 {[%clk
0:00:05.3]} 39. Re2 {[%clk 0:00:07.1]} 39... Rd4 {[%clk 0:00:03.6]} 40. Nf2
{[%clk 0:00:06.1]} 40... Rxb4 {[%clk 0:00:02.4]} 41. Rxe7 {[%clk 0:00:06.7]}
41... Rc4 {[%clk 0:00:02.3]} 42. Rxb7 {[%clk 0:00:06.5]} 42... Rxc5 {[%clk
0:00:02.7]} 43. Ra7 {[%clk 0:00:06.7]} 43... a5 {[%clk 0:00:03.1]} 44. Ne4
{[%clk 0:00:06]} 44... Rb5 {[%clk 0:00:02.9]} 45. Nf6 {[%clk 0:00:05.7]} 45...
Rb8 {[%clk 0:00:02.1]} 46. Rxh7# {[%clk 0:00:04.8]} 1-0